fUST/lending_fUST_20240501
["ID","MTS","AMOUNT","RATE_DAILY","PERIOD"]
[325160942,1714545035534,-500.0,0.00071232,120]
[325160943,1714545035543,-500.0,0.00071232,120]
[325160944,1714545035552,-500.0,0.00071232,120]
[325160945,1714545035562,-506.21,0.00071232,120]
[325160946,1714545035571,-500.0,0.00071232,120]
[325160947,1714545035581,-500.0,0.00071232,120]
[325160948,1714545035590,-500.0,0.00071232,120]
[325160949,1714545035600,-500.0,0.00071232,120]
[325160950,1714545035609,-501.2614672,0.00071232,120]
[325160951,1714545035618,-500.0,0.00071232,120]
[325160952,1714545035627,-278.63176279,0.00071232,120]
[325160953,1714545035636,-1863.29,0.00071232,120]
[325160954,1714545035646,-500.0,0.00071232,120]
[325160955,1714545035655,-500.0,0.00071232,120]
[325160956,1714545035664,-500.0,0.00071232,120]
[325160957,1714545035673,-500.0,0.00071232,120]
[325160958,1714545035683,-500.0,0.00071232,120]
[325160959,1714545035692,-533.66789032,0.00071232,120]
[325160960,1714545035701,-500.0,0.00071232,120]
[325160961,1714545035710,-500.0,0.00071232,120]
[325160962,1714545035719,-500.0,0.00071232,120]
[325160963,1714545035728,-500.0,0.00071232,120]
[325160964,1714545035738,-500.0,0.00071232,120]
[325160965,1714545035747,-187.36688319,0.00071232,120]
[325160966,1714545035757,-500.0,0.00071232,120]
[325160967,1714545035766,-500.0,0.00071232,120]
[325160968,1714545035776,-190.99130353,0.00071232,20]
[325160969,1714545035785,-500.0,0.00071232,120]
[325160970,1714545035795,-993.68,0.00071232,120]
[325160971,1714545035805,-500.0,0.00071232,120]
[325160972,1714545035814,-500.0,0.00071232,120]
[325160973,1714545035830,-500.0,0.00071232,120]
[325160974,1714545035851,-500.0,0.00071232,120]
[325160975,1714545035862,-500.0,0.00071232,120]
[325160976,1714545035872,-500.0,0.00071232,120]
[325160977,1714545035881,-3838.61,0.00071232,120]
[325160978,1714545035891,-504.56480262,0.00071232,120]
[325160979,1714545035900,-319.99447623,0.00071232,120]
[325160980,1714545035911,-501.33149807,0.00071232,120]
[325160981,1714545035925,-500.0,0.00071232,120]
[325160982,1714545035934,-500.0,0.00071232,120]
[325160983,1714545035944,-500.0,0.00071232,120]
[325160984,1714545035952,-500.0,0.00071232,120]
[325160985,1714545035962,-500.0,0.00071232,120]
[325160986,1714545035972,-515.78,0.00071232,120]
[325160987,1714545035981,-500.0,0.00071232,120]
[325160988,1714545035990,-500.0,0.00071232,120]
[325160989,1714545036000,-323.97277908,0.00071232,120]
[325160990,1714545036009,-500.0,0.00071232,120]
[325160991,1714545036019,-401.34900836,0.00071232,120]
[325160992,1714545036029,-500.0,0.00071232,120]
[325160993,1714545036038,-500.0,0.00071232,120]
[325160994,1714545036047,-500.0,0.00071232,120]
[325160995,1714545036056,-500.0,0.00071232,120]
[325160996,1714545036065,-500.0,0.00071232,120]
[325160997,1714545036075,-500.0,0.00071232,120]
[325160998,1714545036084,-500.0,0.00071232,120]
[325160999,1714545036093,-500.0,0.00071232,120]
[325161000,1714545036103,-500.0,0.00071232,120]
[325161001,1714545036112,-1666.95,0.00071232,120]
[325161002,1714545036121,-500.0,0.00071232,120]
[325161003,1714545036130,-500.0,0.00071232,120]
[325161004,1714545036139,-502.33767989,0.00071232,120]
[325161005,1714545036149,-500.0,0.00071232,120]
[325161006,1714545036157,-466.99775864,0.00071232,120]
[325161007,1714545036166,-500.0,0.00071232,120]
[325161008,1714545036176,-500.0,0.00071232,120]
[325161009,1714545036185,-500.0,0.00071232,120]
[325161010,1714545036194,-2127.68,0.00071232,120]
[325161011,1714545036203,-500.0,0.00071232,120]
[325161012,1714545036213,-501.14219273,0.00071232,120]
[325161013,1714545036222,-501.05146108,0.00071232,120]
[325161014,1714545036231,-500.0,0.00071232,120]
[325161015,1714545036241,-641.62742066,0.00071232,120]
[325161016,1714545036250,-500.0,0.00071232,120]
[325161017,1714545036259,-500.0,0.00071232,120]
[325161018,1714545036268,-501.28039105,0.00071232,120]
[325161019,1714545036277,-500.0,0.00071232,120]
[325161020,1714545036286,-500.47129775,0.00071232,120]
[325161021,1714545036295,-500.41013726,0.00071232,120]
[325161022,1714545036305,-500.0,0.00071232,120]
[325161023,1714545036314,-919.66,0.00071232,120]
[325161024,1714545036323,-500.0,0.00071232,120]
[325161025,1714545036332,-502.15607403,0.00071232,120]
[325161026,1714545036341,-500.0,0.00071232,120]
[325161027,1714545036350,-500.0,0.00071232,120]
[325161028,1714545036359,-500.0,0.00071232,120]
[325161029,1714545036368,-501.51120321,0.00071232,120]
[325161030,1714545036378,-500.0,0.00071232,120]
[325161031,1714545036387,-500.0,0.00071232,120]
[325161032,1714545036396,-500.0,0.00071232,120]
[325161033,1714545036405,-500.0,0.00071232,120]
[325161034,1714545036413,-500.0,0.00071232,120]
[325161035,1714545036423,-500.0,0.00071232,120]
[325161036,1714545036432,-500.0,0.00071232,120]
[325161037,1714545036442,-500.0,0.00071232,120]
[325161038,1714545036451,-500.0,0.00071232,120]
[325161039,1714545036460,-500.0,0.00071232,120]
[325161040,1714545036470,-500.0,0.00071232,120]
[325161041,1714545036479,-500.0,0.00071232,120]
[325161042,1714545036488,-500.0,0.00071232,120]
[325161043,1714545036497,-527.46554075,0.00071232,120]
[325161044,1714545036507,-500.0,0.00071232,120]
[325161045,1714545036516,-500.0,0.00071232,120]
[325161046,1714545036525,-500.0,0.00071232,120]
[325161047,1714545036534,-500.0,0.00071232,120]
[325161048,1714545036543,-500.0,0.00071232,120]
[325161049,1714545036552,-500.0,0.00071232,120]
[325161050,1714545036561,-785.36,0.00071232,120]
[325161051,1714545036570,-500.0,0.00071232,120]
[325161052,1714545036579,-500.0,0.00071232,120]
[325161053,1714545036589,-500.0,0.00071232,120]
[325161054,1714545036599,-500.0,0.00071232,120]
[325161055,1714545036608,-2903.1,0.00071232,120]
[325161056,1714545036617,-500.0,0.00071232,120]
[325161057,1714545036626,-500.0,0.00071232,120]
[325161058,1714545036636,-500.0,0.00071232,120]
[325161059,1714545036645,-500.0,0.00071232,120]
[325161060,1714545036654,-500.0,0.00071232,120]
[325161061,1714545036663,-500.0,0.00071232,120]
[325161062,1714545036673,-631.77,0.00071232,120]
[325161063,1714545036682,-222.05634145,0.00071232,120]
[325161064,1714545036691,-500.0,0.00071232,120]
[325161065,1714545036700,-500.0,0.00071232,120]
[325161066,1714545036710,-3464.49,0.00071232,120]
[325161067,1714545036719,-500.0,0.00071232,120]
[325161068,1714545036728,-500.0,0.00071232,120]
[325161069,1714545036737,-501.02780802,0.00071232,120]
[325161070,1714545036747,-4177.53,0.00071232,120]
[325161071,1714545036756,-168.47257329,0.00071232,120]
[325161072,1714545036765,-500.0,0.00071232,120]
[325161073,1714545036774,-502.0960308,0.00071232,120]
[325161074,1714545036784,-260.63690205,0.00071232,120]
[325161075,1714545036793,-500.0,0.00071232,120]
[325161076,1714545036802,-500.0,0.00071232,120]
[325161077,1714545036811,-501.20557834,0.00071232,120]
[325161078,1714545036820,-500.0,0.00071232,120]
[325161079,1714545036829,-500.0,0.00071232,120]
[325161080,1714545036839,-880.95,0.00071232,2]
[325161081,1714545036848,-1884.77,0.00071232,120]
[325161082,1714545036857,-500.0,0.00071232,120]
[325161083,1714545036867,-500.0,0.00071232,120]
[325161084,1714545036876,-500.0,0.00071232,120]
[325161085,1714545036885,-500.0,0.00071232,120]
[325161086,1714545036894,-500.0,0.00071232,120]
[325161087,1714545036903,-479.17875976,0.00071232,120]
[325161088,1714545036912,-500.0,0.00071232,120]
[325161089,1714545036922,-500.0,0.00071232,120]
[325161090,1714545036934,-500.0,0.00071232,120]
[325161091,1714545036943,-500.0,0.00071232,120]
[325161092,1714545036952,-500.0,0.00071232,120]
[325161093,1714545036961,-500.0,0.00071232,120]
[325161094,1714545036971,-500.0,0.00071232,120]
[325161095,1714545036980,-500.0,0.00071232,60]
[325161096,1714545036989,-500.0,0.00071232,120]
[325161097,1714545037000,-500.0,0.00071232,120]
[325161098,1714545037010,-500.0,0.00071232,120]
[325161099,1714545037020,-273.67984461,0.00071232,120]
[325161100,1714545037029,-516.58,0.00071232,120]
[325161101,1714545037040,-516.58,0.00071232,120]
[325161102,1714545037049,-1086.0,0.00071232,120]
[325161103,1714545037058,-516.58,0.00071232,120]
[325161104,1714545037067,-516.58,0.00071232,120]
[325161105,1714545037077,-516.58,0.00071232,120]
[325161106,1714545037087,-500.0,0.00071232,120]
[325161107,1714545037096,-500.0,0.00071232,120]
[325161108,1714545037107,-500.0,0.00071232,120]
[325161109,1714545037116,-500.0,0.00071232,120]
[325161110,1714545037125,-877.24,0.00071232,120]
[325161111,1714545037134,-500.0,0.00071232,120]
[325161112,1714545037143,-500.0,0.00071232,120]
[325161113,1714545037152,-500.0,0.00071232,120]
[325161114,1714545037161,-500.0,0.00071232,120]
[325161115,1714545037170,-500.0,0.00071232,120]
[325161116,1714545037179,-501.65379551,0.00071232,120]
[325161117,1714545037188,-500.0,0.00071232,120]
[325161118,1714545037198,-500.0,0.00071232,120]
[325161119,1714545037207,-500.0,0.00071232,120]
[325161120,1714545037217,-500.0,0.00071232,120]
[325161121,1714545037227,-322.74146698,0.00071232,120]
[325161122,1714545037237,-500.0,0.00071232,120]
[325161123,1714545037247,-501.23152838,0.00071232,120]
[325161124,1714545037257,-500.0,0.00071232,120]
[325161125,1714545037266,-500.0,0.00071232,120]
[325161126,1714545037275,-500.0,0.00071232,120]
[325161127,1714545037284,-500.0,0.00071232,120]
[325161128,1714545037294,-500.0,0.00071232,120]
[325161129,1714545037303,-500.0,0.00071232,120]
[325161130,1714545037312,-500.0,0.00071232,120]
[325161131,1714545037321,-500.0,0.00071232,120]
[325161132,1714545037332,-500.0,0.00071232,120]
[325161133,1714545037341,-500.0,0.00071232,120]
[325161134,1714545037351,-1419.01,0.00071232,120]
[325161135,1714545037361,-500.0,0.00071232,120]
[325161136,1714545037370,-424.89472744,0.00071232,120]
[325161137,1714545037379,-501.86196545,0.00071232,3]
[325161138,1714545037388,-500.0,0.00071232,120]
[325161139,1714545037397,-500.0,0.00071232,120]
[325161140,1714545037407,-500.0,0.00071232,30]
[325161141,1714545037416,-500.0,0.00071232,120]
[325161142,1714545037425,-500.0,0.00071232,120]
[325161143,1714545037435,-500.0,0.00071232,120]
[325161144,1714545037444,-500.0,0.00071232,120]
[325161145,1714545037453,-500.0,0.00071232,120]
[325161146,1714545037462,-2006.98,0.00071232,120]
[325161147,1714545037471,-587.72,0.00071232,21]
[325161148,1714545037481,-500.0,0.00071232,120]
[325161149,1714545037490,-500.0,0.00071232,7]
[325161150,1714545037499,-12714.85,0.00071232,120]
[325161151,1714545037508,-500.0,0.00071232,120]
[325161152,1714545037517,-500.0,0.00071232,120]
[325161153,1714545037526,-2060.52,0.00071232,120]
[325161154,1714545037536,-510.07447951,0.00071232,120]
[325161155,1714545037547,-790.93,0.00071232,120]
[325161156,1714545037557,-500.0,0.00071232,120]
[325161157,1714545037566,-297.99337162,0.00071232,120]
[325161158,1714545037575,-500.0,0.00071232,120]
[325161159,1714545037585,-516.72858567,0.00071232,120]
[325161160,1714545037596,-936.12,0.00071232,120]
[325161161,1714545037607,-500.0,0.00071232,120]
[325161162,1714545037616,-500.0,0.00071232,120]
[325161163,1714545037625,-500.0,0.00071232,120]
[325161164,1714545037634,-500.0,0.00071232,120]
[325161165,1714545037643,-500.0,0.00071232,120]
[325161166,1714545037652,-3142.8,0.00071232,120]
[325161167,1714545037662,-500.0,0.00071232,120]
[325161168,1714545037671,-500.0,0.00071232,120]
[325161169,1714545037679,-500.0,0.00071232,120]
[325161170,1714545037688,-500.0,0.00071232,120]
[325161171,1714545037697,-397.13468559,0.00071232,120]
[325161172,1714545037707,-2066.2,0.00071232,120]
[325161173,1714545037716,-500.0,0.00071232,120]
[325161174,1714545037725,-400.22041371,0.00071232,120]
[325161175,1714545037734,-501.09806989,0.00071232,120]
[325161176,1714545037743,-428.52381,0.00073047,2]
[325161177,1714545037752,-10000.0,0.00073211,120]
[325161178,1714545037761,-151.0,0.00075041,120]
[325161179,1714545037770,-500.0,0.00076711,120]
[325161180,1714545037779,-500.0,0.00076711,120]
[325161181,1714545037787,-500.0,0.00076711,120]
[325161182,1714545037796,-500.0,0.00076711,120]
[325161183,1714545037805,-500.0,0.00076711,120]
[325161184,1714545037814,-999.0,0.00076711,120]
[325161185,1714545037823,-999.0,0.00076711,120]
[325161186,1714545037831,-999.0,0.00076711,120]
[325161187,1714545037840,-999.0,0.00076711,120]
[325161188,1714545037851,-999.0,0.00076711,120]
[325161189,1714545037860,-3151.22,0.00076711,30]
[325161190,1714545037869,-516.58,0.00076711,120]
[325161191,1714545037878,-516.58,0.00076711,120]
[325161192,1714545037887,-516.58,0.00076711,120]
[325161193,1714545037896,-516.58,0.00076711,120]
[325161194,1714545037905,-516.58,0.00076711,120]
[325161195,1714545037920,-500.0,0.00076712,120]
[325161196,1714545037930,-154.95425391,0.00076712,120]
[325161197,1714545037939,-505.24966941,0.00076712,120]
[325161198,1714545038044,-500.0,0.00076712,120]
[325161199,1714545038054,-500.0,0.00076712,120]
[325161200,1714545038063,-500.0,0.00076712,120]
[325161201,1714545038073,-501.5512072,0.00076712,120]
[325161202,1714545038083,-500.0,0.00076712,120]
[325161203,1714545038092,-500.0,0.00076712,120]
[325161204,1714545038101,-500.0,0.00076712,120]
[325161205,1714545038110,-501.37704937,0.00076712,120]
[325161206,1714545038119,-502.4336532,0.00076712,120]
[325161207,1714545038128,-500.0,0.00076712,120]
[325161208,1714545038137,-318.59605489,0.00076712,120]
[325161209,1714545038146,-503.72942036,0.00076712,120]
[325161210,1714545038155,-501.74569118,0.00076712,120]
[325161211,1714545038164,-500.96041443,0.00076712,120]
[325161212,1714545038173,-1538.11,0.00076712,120]
[325161213,1714545038182,-500.0,0.00076712,120]
[325161214,1714545038192,-500.0,0.00076712,120]
[325161215,1714545038201,-500.0,0.00076712,120]
[325161216,1714545038210,-500.0,0.00076712,120]
[325161217,1714545038219,-500.0,0.00076712,120]
[325161218,1714545038229,-503.80691186,0.00076712,120]
[325161219,1714545038238,-500.0,0.00076712,120]
[325161220,1714545038247,-410.03210294,0.00076712,120]
[325161221,1714545038256,-507.28473217,0.00076712,120]
[325161222,1714545038266,-1145.84,0.00076712,120]
[325161223,1714545038276,-500.0,0.00076712,120]
[325161224,1714545038285,-500.0,0.00076712,120]
[325161225,1714545038294,-1102.76,0.00076712,120]
[325161226,1714545038303,-500.0,0.00076712,120]
[325161227,1714545038312,-500.0,0.00076712,120]
[325161228,1714545038321,-500.0,0.00076712,120]
[325161229,1714545038330,-500.0,0.00076712,120]
[325161230,1714545038339,-500.0,0.00076712,120]
[325161231,1714545038348,-501.01164287,0.00076712,120]
[325161232,1714545038358,-500.0,0.00076712,120]
[325161233,1714545038367,-500.0,0.00076712,120]
[325161234,1714545038375,-500.0,0.00076712,120]
[325161235,1714545038384,-306.5633656,0.00076712,120]
[325161236,1714545038393,-500.0,0.00076712,120]
[325161237,1714545038402,-500.0,0.00076712,120]
[325161238,1714545038411,-500.0,0.00076712,120]
[325161239,1714545038421,-500.0,0.00076712,120]
[325161240,1714545038430,-500.0,0.00076712,120]
[325161241,1714545038439,-500.0,0.00076712,120]
[325161242,1714545038448,-500.0,0.00076712,120]
[325161243,1714545038458,-500.0,0.00076712,120]
[325161244,1714545038467,-2212.74,0.00076712,120]
[325161245,1714545038477,-500.0,0.00076712,120]
[325161246,1714545038486,-507.46245573,0.00076712,120]
[325161247,1714545038495,-500.0,0.00076712,120]
[325161248,1714545038504,-500.0,0.00076712,120]
[325161249,1714545038514,-500.0,0.00076712,120]
[325161250,1714545038524,-310.14335967,0.00076712,120]
[325161251,1714545038533,-500.0,0.00076712,120]
[325161252,1714545038543,-500.0,0.00076712,120]
[325161253,1714545038553,-500.0,0.00076712,120]
[325161254,1714545038562,-500.0,0.00076712,120]
[325161255,1714545038571,-197.38624522,0.00076712,120]
[325161256,1714545038581,-500.0,0.00076712,120]
[325161257,1714545038590,-500.0,0.00076712,120]
[325161258,1714545038602,-500.0,0.00076712,120]
[325161259,1714545038611,-500.0,0.00076712,120]
[325161260,1714545038621,-571.09366533,0.00076712,120]
[325161261,1714545038631,-500.0,0.00076712,120]
[325161262,1714545038640,-500.0,0.00076712,120]
[325161263,1714545038650,-500.00049602,0.00076712,120]
[325161264,1714545038659,-1107.63,0.00076712,120]
[325161265,1714545038669,-500.0,0.00076712,120]
[325161266,1714545038678,-500.0,0.00076712,120]
[325161267,1714545038687,-496.59077021,0.00076712,120]
[325161268,1714545038697,-500.82733921,0.00076712,120]
[325161269,1714545038708,-500.0,0.00076712,120]
[325161270,1714545038718,-500.0,0.00076712,120]
[325161271,1714545038727,-500.0,0.00076712,120]
[325161272,1714545038736,-500.0,0.00076712,120]
[325161273,1714545038746,-500.0,0.00076712,120]
[325161274,1714545038755,-500.0,0.00076712,120]
[325161275,1714545038764,-500.0,0.00076712,120]
[325161276,1714545038774,-500.0,0.00076712,120]
[325161277,1714545038783,-501.00267243,0.00076712,120]
[325161278,1714545038793,-500.0,0.00076712,120]
[325161279,1714545038803,-500.0,0.00076712,120]
[325161280,1714545038812,-500.0,0.00076712,120]
[325161281,1714545038821,-500.0,0.00076712,120]
[325161282,1714545038830,-221.12538202,0.00076712,120]
[325161283,1714545038839,-500.0,0.00076712,120]
[325161284,1714545038849,-500.0,0.00076712,120]
[325161285,1714545038859,-500.0,0.00076712,120]
[325161286,1714545038868,-500.0,0.00076712,120]
[325161287,1714545038877,-500.0,0.00076712,120]
[325161288,1714545038886,-500.0,0.00076712,120]
[325161289,1714545038896,-501.26063707,0.00076712,120]
[325161290,1714545038905,-500.0,0.00076712,120]
[325161291,1714545038915,-500.0,0.00076712,120]
[325161292,1714545038925,-501.41509149,0.00076712,120]
[325161293,1714545038937,-500.0,0.00076712,120]
[325161294,1714545038947,-500.0,0.00076712,120]
[325161295,1714545038957,-500.0,0.00076712,120]
[325161296,1714545038966,-500.0,0.00076712,120]
[325161297,1714545038977,-500.78247291,0.00076712,120]
[325161298,1714545038986,-500.0,0.00076712,120]
[325161299,1714545038995,-500.0,0.00076712,120]
[325161300,1714545039005,-500.0,0.00076712,120]
[325161301,1714545039015,-500.96238832,0.00076712,120]
[325161302,1714545039024,-500.0,0.00076712,120]
[325161303,1714545039033,-500.0,0.00076712,2]
[325161304,1714545039042,-500.0,0.00076712,120]
[325161305,1714545039051,-500.0,0.00076712,120]
[325161306,1714545039060,-500.0,0.00076712,120]
[325161307,1714545039069,-500.0,0.00076712,120]
[325161308,1714545039078,-500.0,0.00076712,120]
[325161309,1714545039087,-501.54878924,0.00076712,120]
[325161310,1714545039097,-500.0,0.00076712,120]
[325161311,1714545039107,-500.0,0.00076712,120]
[325161312,1714545039116,-500.0,0.00076712,120]
[325161313,1714545039125,-500.0,0.00076712,120]
[325161314,1714545039135,-340.30373689,0.00076712,120]
[325161315,1714545039145,-500.0,0.00076712,120]
[325161316,1714545039154,-778.65,0.00076712,120]
[325161317,1714545039163,-500.0,0.00076712,120]
[325161318,1714545039174,-500.0,0.00076712,120]
[325161319,1714545039184,-500.0,0.00076712,120]
[325161322,1714545039193,-500.99325245,0.00076712,120]
[325161324,1714545039202,-500.0,0.00076712,120]
[325161325,1714545039211,-500.0,0.00076712,120]
[325161327,1714545039221,-500.0,0.00076712,120]
[325161329,1714545039230,-2041.86,0.00076712,120]
[325161331,1714545039239,-500.0,0.00076712,120]
[325161333,1714545039249,-503.62873282,0.00076712,120]
[325161335,1714545039259,-500.0,0.00076712,120]
[325161337,1714545039268,-1964.34,0.00076712,120]
[325161339,1714545039278,-500.0,0.00076712,120]
[325161341,1714545039287,-500.0,0.00076712,120]
[325161343,1714545039298,-500.0,0.00076712,120]
[325161345,1714545039307,-502.95646567,0.00076712,120]
[325161347,1714545039317,-500.0,0.00076712,120]
[325161349,1714545039327,-500.0,0.00076712,120]
[325161350,1714545039336,-500.0,0.00076712,120]
[325161352,1714545039346,-501.35121444,0.00076712,120]
[325161354,1714545039356,-500.0,0.00076712,120]
[325161355,1714545039365,-500.0,0.00076712,120]
[325161357,1714545039375,-500.0,0.00076712,120]
[325161358,1714545039384,-500.0,0.00076712,120]
[325161360,1714545039394,-500.0,0.00076712,120]
[325161361,1714545039405,-3379.51,0.00076712,2]
[325161363,1714545039414,-597.96,0.00076712,120]
[325161364,1714545039424,-3274.6,0.00076712,120]
[325161366,1714545039434,-500.0,0.00076712,120]
[325161369,1714545039443,-500.0,0.00076712,120]
[325161372,1714545039452,-500.0,0.00076712,120]
[325161373,1714545039462,-500.0,0.00076712,120]
[325161375,1714545039471,-500.0,0.00076712,120]
[325161377,1714545039480,-500.0,0.00076712,120]
[325161379,1714545039489,-500.0,0.00076712,120]
[325161381,1714545039499,-500.0,0.00076712,120]
[325161382,1714545039508,-500.0,0.00076712,120]
[325161383,1714545039518,-516.89,0.00076712,120]
[325161384,1714545039528,-500.0,0.00076712,120]
[325161385,1714545039537,-500.0,0.00076712,120]
[325161386,1714545039546,-1620.76,0.00076712,120]
[325161387,1714545039556,-2000.17,0.00076712,120]
[325161388,1714545039565,-500.0,0.00076712,120]
[325161389,1714545039574,-500.0,0.00076712,120]
[325161390,1714545039584,-241.05772642,0.00076712,120]
[325161391,1714545039594,-500.0,0.00076712,60]
[325161392,1714545039605,-500.0,0.00076712,120]
[325161393,1714545039614,-1281.61,0.00076712,120]
[325161394,1714545039624,-501.40658655,0.00076712,120]
[325161395,1714545039634,-500.0,0.00076712,120]
[325161396,1714545039643,-500.0,0.00076712,120]
[325161399,1714545039652,-506.21,0.00076712,120]
[325161403,1714545039662,-500.0,0.00076712,120]
[325161405,1714545039672,-500.0,0.00076712,120]
[325161408,1714545039682,-500.0,0.00076712,120]
[325161411,1714545039691,-500.0,0.00076712,120]
[325161414,1714545039701,-500.0,0.00076712,120]
[325161416,1714545039710,-1863.29,0.00076712,120]
[325161417,1714545039720,-500.0,0.00076712,120]
[325161419,1714545039729,-500.0,0.00076712,120]
[325161421,1714545039739,-551.05069403,0.00076712,120]
[325161423,1714545039748,-500.0,0.00076712,120]
[325161425,1714545039757,-500.0,0.00076712,120]
[325161427,1714545039766,-500.0,0.00076712,120]
[325161429,1714545039776,-503.63761946,0.00076712,120]
[325161430,1714545039785,-500.0,0.00076712,120]
[325161431,1714545039795,-500.0,0.00076712,120]
[325161432,1714545039804,-500.0,0.00076712,120]
[325161433,1714545039814,-502.32899715,0.00076712,120]
[325161434,1714545039824,-500.0,0.00076712,120]
[325161436,1714545039833,-500.0,0.00076712,120]
[325161438,1714545039843,-993.68,0.00076712,120]
[325161440,1714545039852,-502.27448261,0.00076712,120]
[325161442,1714545039861,-500.0,0.00076712,120]
[325161444,1714545039871,-500.0,0.00076712,120]
[325161446,1714545039880,-502.73069865,0.00076712,120]
[325161448,1714545039889,-500.0,0.00076712,120]
[325161450,1714545039898,-500.0,0.00076712,120]
[325161452,1714545039909,-3838.61,0.00076712,120]
[325161454,1714545039919,-503.99982355,0.00076712,120]
[325161456,1714545039930,-500.0,0.00076712,120]
[325161458,1714545039939,-503.45575842,0.00076712,120]
[325161460,1714545039948,-272.40485161,0.00076712,120]
[325161462,1714545039958,-515.78,0.00076712,120]
[325161464,1714545039967,-500.0,0.00076712,120]
[325161465,1714545039976,-500.0,0.00076712,120]
[325161467,1714545039985,-500.0,0.00076712,120]
[325161469,1714545039995,-500.0,0.00076712,120]
[325161471,1714545040003,-500.0,0.00076712,120]
[325161474,1714545040014,-384.70665081,0.00076712,120]
[325161476,1714545040024,-501.58414585,0.00076712,120]
[325161478,1714545040033,-500.0,0.00076712,120]
[325161480,1714545040042,-500.0,0.00076712,120]
[325161481,1714545040051,-500.0,0.00076712,120]
[325161483,1714545040060,-500.0,0.00076712,120]
[325161485,1714545040069,-500.0,0.00076712,120]
[325161487,1714545040082,-1666.95,0.00076712,120]
[325161489,1714545040091,-501.2498832,0.00076712,120]
[325161492,1714545040100,-500.0,0.00076712,120]
[325161494,1714545040110,-482.24,0.00076712,120]
[325161496,1714545040119,-500.0,0.00076712,120]
[325161497,1714545040128,-500.0,0.00076712,120]
[325161499,1714545040138,-500.0,0.00076712,120]
[325161501,1714545040147,-2127.68,0.00076712,120]
[325161504,1714545040156,-500.0,0.00076712,120]
[325161506,1714545040166,-500.0,0.00076712,120]
[325161508,1714545040176,-500.0,0.00076712,120]
[325161510,1714545040185,-500.0,0.00076712,120]
[325161512,1714545040194,-500.0,0.00076712,120]
[325161513,1714545040204,-500.0,0.00076712,120]
[325161516,1714545040213,-500.0,0.00076712,120]
[325161518,1714545040223,-919.66,0.00076712,120]
[325161520,1714545040232,-502.15753858,0.00076712,120]
[325161522,1714545040241,-500.0,0.00076712,120]
[325161524,1714545040250,-502.31896781,0.00076712,120]
[325161525,1714545040259,-500.0,0.00076712,120]
[325161528,1714545040268,-501.83913629,0.00076712,120]
[325161530,1714545040278,-501.52643414,0.00076712,120]
[325161531,1714545040287,-500.0,0.00076712,120]
[325161534,1714545040296,-501.36513364,0.00076712,120]
[325161536,1714545040306,-500.0,0.00076712,120]
[325161538,1714545040315,-500.0,0.00076712,120]
[325161539,1714545040324,-500.0,0.00076712,120]
[325161541,1714545040333,-500.0,0.00076712,120]
[325161544,1714545040344,-500.0,0.00076712,120]